[Event "Titled Tuesday Blitz April 05 Late 2022"]
[White "Dubov, Daniil"]
[Black "Kollars, Dmitrij"]
[WhiteFideId "24126055"]
[BlackFideId "12909572"]
[WhiteElo "2791"]
[BlackElo "2584"]
[Result "1-0"]
[Round "05"]
[TimeControl "180+1"]
[Date "2022.04.05"]
[WhiteClock "0:01:23"]
[BlackClock "0:00:03"]

1. e4 {[%clk 0:03:00]}  c6 {[%clk 0:02:59]} 2. d4 {[%clk 0:02:59]}  d5 {[%clk 0:02:59]} 3. e5 {[%clk 0:03:00]}  Bf5 {[%clk 0:03:00]} 4. Nf3 {[%clk 0:03:00]}  e6 {[%clk 0:02:59]} 5. Be2 {[%clk 0:03:01]}  Nd7 {[%clk 0:02:56]} 6. O-O {[%clk 0:03:01]}  Ne7 {[%clk 0:02:56]} 7. c4 {[%clk 0:03:00]}  h6 {[%clk 0:02:52]} 8. Nc3 {[%clk 0:02:59]}  dxc4 {[%clk 0:02:46]} 9. Bxc4 {[%clk 0:02:59]}  Nb6 {[%clk 0:02:47]} 10. Bd3 {[%clk 0:02:59]}  Nbd5 {[%clk 0:02:39]} 11. Re1 {[%clk 0:02:49]}  Bxd3 {[%clk 0:02:26]} 12. Qxd3 {[%clk 0:02:48]}  Ng6 {[%clk 0:02:26]} 13. Qe4 {[%clk 0:02:45]}  Be7 {[%clk 0:02:24]} 14. Bd2 {[%clk 0:02:44]}  O-O {[%clk 0:02:02]} 15. Rad1 {[%clk 0:02:41]}  Qb6 {[%clk 0:01:59]} 16. Qg4 {[%clk 0:02:32]}  Qxb2 {[%clk 0:01:50]} 17. Nxd5 {[%clk 0:02:13]}  cxd5 {[%clk 0:01:47]} 18. h4 {[%clk 0:02:13]}  h5 {[%clk 0:01:05]} 19. Qxh5 {[%clk 0:02:11]}  Qc2 {[%clk 0:01:05]} 20. Rc1 {[%clk 0:02:03]}  Qd3 {[%clk 0:00:57]} 21. Rc3 {[%clk 0:01:58]}  Qf5 {[%clk 0:00:52]} 22. Qxf5 {[%clk 0:01:58]}  exf5 {[%clk 0:00:53]} 23. h5 {[%clk 0:01:57]}  Nh4 {[%clk 0:00:52]} 24. Rc7 {[%clk 0:01:55]}  Nxf3+ {[%clk 0:00:46]} 25. gxf3 {[%clk 0:01:56]}  Ba3 {[%clk 0:00:44]} 26. Rxb7 {[%clk 0:01:51]}  Rfc8 {[%clk 0:00:43]} 27. e6 {[%clk 0:01:46]}  fxe6 {[%clk 0:00:37]} 28. Rxe6 {[%clk 0:01:47]}  Rc2 {[%clk 0:00:38]} 29. Bf4 {[%clk 0:01:47]}  Bf8 {[%clk 0:00:27]} 30. Be5 {[%clk 0:01:41]}  Rxa2 {[%clk 0:00:26]} 31. h6 {[%clk 0:01:40]}  Kh7 {[%clk 0:00:04]} 32. hxg7 {[%clk 0:01:38]}  Ba3 {[%clk 0:00:04]} 33. g8=Q+ {[%clk 0:01:22]}  Kxg8 {[%clk 0:00:03]} 34. Rh6 {[%clk 0:01:23]} 1-0


[Site "https://www.chess.com"]

[Event "Titled Tuesday Blitz April 05 Late 2022"]
[White "Fedoseev, Vladimir"]
[Black "Kobalia, Mikhail"]
[WhiteFideId "24130737"]
[BlackFideId "4119150"]
[WhiteElo "2726"]
[BlackElo "2667"]
[Result "1-0"]
[Round "05"]
[TimeControl "180+1"]
[Date "2022.04.05"]
[WhiteClock "0:00:15"]
[BlackClock "0:00:04"]

1. e4 {[%clk 0:02:59]}  c6 {[%clk 0:02:59]} 2. d4 {[%clk 0:02:59]}  d5 {[%clk 0:03:00]} 3. exd5 {[%clk 0:02:59]}  cxd5 {[%clk 0:03:00]} 4. Bd3 {[%clk 0:03:00]}  Nc6 {[%clk 0:02:59]} 5. c3 {[%clk 0:03:00]}  Nf6 {[%clk 0:03:00]} 6. Bf4 {[%clk 0:02:59]}  Bg4 {[%clk 0:02:55]} 7. Qb3 {[%clk 0:02:57]}  Qd7 {[%clk 0:02:55]} 8. Nd2 {[%clk 0:02:57]}  e6 {[%clk 0:02:55]} 9. Ngf3 {[%clk 0:02:57]}  Bd6 {[%clk 0:02:55]} 10. Bxd6 {[%clk 0:02:47]}  Qxd6 {[%clk 0:02:54]} 11. O-O {[%clk 0:02:47]}  O-O {[%clk 0:02:54]} 12. Rfe1 {[%clk 0:02:47]}  Qc7 {[%clk 0:02:54]} 13. h3 {[%clk 0:02:40]}  Bh5 {[%clk 0:02:53]} 14. a4 {[%clk 0:02:27]}  Rab8 {[%clk 0:02:50]} 15. Qa3 {[%clk 0:02:25]}  a6 {[%clk 0:02:45]} 16. a5 {[%clk 0:02:22]}  b5 {[%clk 0:02:35]} 17. axb6 {[%clk 0:02:20]}  Rxb6 {[%clk 0:02:35]} 18. b4 {[%clk 0:02:12]}  Bg6 {[%clk 0:02:00]} 19. Bxg6 {[%clk 0:02:05]}  hxg6 {[%clk 0:01:59]} 20. Nb3 {[%clk 0:02:05]}  Na7 {[%clk 0:01:48]} 21. Nc5 {[%clk 0:02:04]}  Nb5 {[%clk 0:01:47]} 22. Qb2 {[%clk 0:02:03]}  Ra8 {[%clk 0:01:42]} 23. Ne5 {[%clk 0:01:53]}  Nd6 {[%clk 0:01:22]} 24. Ra4 {[%clk 0:01:41]}  Qc8 {[%clk 0:01:16]} 25. Rea1 {[%clk 0:01:39]}  Nfe4 {[%clk 0:01:16]} 26. Qc2 {[%clk 0:01:35]}  Nb5 {[%clk 0:01:02]} 27. Nxe4 {[%clk 0:01:14]}  dxe4 {[%clk 0:01:03]} 28. Rc1 {[%clk 0:01:03]}  Nd6 {[%clk 0:00:49]} 29. c4 {[%clk 0:01:01]}  Rb7 {[%clk 0:00:32]} 30. c5 {[%clk 0:00:59]}  Nb5 {[%clk 0:00:30]} 31. Qxe4 {[%clk 0:00:56]}  Rc7 {[%clk 0:00:23]} 32. Nc4 {[%clk 0:00:55]}  Rb8 {[%clk 0:00:18]} 33. Ra2 {[%clk 0:00:45]}  Rd7 {[%clk 0:00:14]} 34. Rd2 {[%clk 0:00:39]}  Qd8 {[%clk 0:00:13]} 35. Ne5 {[%clk 0:00:36]}  Rxd4 {[%clk 0:00:11]} 36. Rxd4 {[%clk 0:00:36]}  Qxd4 {[%clk 0:00:11]} 37. Qxd4 {[%clk 0:00:27]}  Nxd4 {[%clk 0:00:12]} 38. Rc4 {[%clk 0:00:26]}  Nb5 {[%clk 0:00:11]} 39. Nc6 {[%clk 0:00:24]}  Rb7 {[%clk 0:00:10]} 40. Rc1 {[%clk 0:00:23]}  Rc7 {[%clk 0:00:09]} 41. Na5 {[%clk 0:00:22]}  Rd7 {[%clk 0:00:08]} 42. Ra1 {[%clk 0:00:21]}  Rd4 {[%clk 0:00:07]} 43. Nc6 {[%clk 0:00:20]}  Rd2 {[%clk 0:00:05]} 44. g4 {[%clk 0:00:19]}  Nd4 {[%clk 0:00:04]} 45. Rxa6 {[%clk 0:00:15]} 1-0


[Site "https://www.chess.com"]

[Event "Titled Tuesday Blitz April 05 Late 2022"]
[White "Fishbein, Alexander"]
[Black "Sanal, Vahap"]
[WhiteFideId "2000377"]
[BlackFideId "6300545"]
[WhiteElo "2442"]
[BlackElo "2603"]
[Result "0-1"]
[Round "05"]
[TimeControl "180+1"]
[Date "2022.04.05"]
[WhiteClock "0:00:45"]
[BlackClock "0:01:45"]

1. e4 {[%clk 0:02:59]}  d6 {[%clk 0:02:59]} 2. d4 {[%clk 0:02:55]}  Nf6 {[%clk 0:02:59]} 3. Bd3 {[%clk 0:02:55]}  e5 {[%clk 0:02:59]} 4. c3 {[%clk 0:02:54]}  Nc6 {[%clk 0:02:58]} 5. Nf3 {[%clk 0:02:53]}  g6 {[%clk 0:02:58]} 6. O-O {[%clk 0:02:51]}  Bg7 {[%clk 0:02:59]} 7. Nbd2 {[%clk 0:02:50]}  O-O {[%clk 0:02:59]} 8. Re1 {[%clk 0:02:48]}  Re8 {[%clk 0:02:59]} 9. h3 {[%clk 0:02:38]}  Nh5 {[%clk 0:02:42]} 10. d5 {[%clk 0:02:19]}  Ne7 {[%clk 0:02:40]} 11. Nf1 {[%clk 0:02:19]}  Rf8 {[%clk 0:02:35]} 12. g4 {[%clk 0:02:12]}  Nf6 {[%clk 0:02:32]} 13. Ng3 {[%clk 0:02:10]}  Nd7 {[%clk 0:02:31]} 14. c4 {[%clk 0:02:03]}  Nc5 {[%clk 0:02:30]} 15. Bc2 {[%clk 0:02:02]}  a5 {[%clk 0:02:31]} 16. Be3 {[%clk 0:02:00]}  b6 {[%clk 0:02:31]} 17. Kh2 {[%clk 0:01:55]}  f5 {[%clk 0:02:22]} 18. exf5 {[%clk 0:01:45]}  gxf5 {[%clk 0:02:22]} 19. Bxc5 {[%clk 0:01:45]}  bxc5 {[%clk 0:02:21]} 20. gxf5 {[%clk 0:01:38]}  Nxf5 {[%clk 0:02:22]} 21. Nxf5 {[%clk 0:01:32]}  Bxf5 {[%clk 0:02:21]} 22. Bxf5 {[%clk 0:01:32]}  Rxf5 {[%clk 0:02:22]} 23. Rg1 {[%clk 0:01:27]}  Qf6 {[%clk 0:02:21]} 24. Nd2 {[%clk 0:01:12]}  Rxf2+ {[%clk 0:02:19]} 25. Kh1 {[%clk 0:01:12]}  Qh6 {[%clk 0:02:14]} 26. Qg4 {[%clk 0:00:54]}  Rxd2 {[%clk 0:02:09]} 27. Raf1 {[%clk 0:00:55]}  Kh8 {[%clk 0:02:05]} 28. Rf5 {[%clk 0:00:54]}  Rd4 {[%clk 0:01:45]} 29. Qf3 {[%clk 0:00:46]}  Rf4 {[%clk 0:01:44]} 30. Rxf4 {[%clk 0:00:45]}  exf4 {[%clk 0:01:45]} 0-1


[Site "https://www.chess.com"]

[Event "Titled Tuesday Blitz April 05 Late 2022"]
[White "Galego, Luis"]
[Black "Cagara, Paulina"]
[WhiteFideId "1900072"]
[BlackFideId "1124870"]
[WhiteElo "2516"]
[BlackElo "1780"]
[Result "1-0"]
[Round "05"]
[TimeControl "180+1"]
[Date "2022.04.06"]
[WhiteClock "0:01:07"]
[BlackClock "0:01:14"]

1. d4 {[%clk 0:01:43]}  f5 {[%clk 0:02:56]} 2. c4 {[%clk 0:01:44]}  Nf6 {[%clk 0:02:54]} 3. Nc3 {[%clk 0:01:45]}  g6 {[%clk 0:02:54]} 4. g3 {[%clk 0:01:45]}  Bg7 {[%clk 0:02:54]} 5. Bg2 {[%clk 0:01:46]}  O-O {[%clk 0:02:54]} 6. Qc2 {[%clk 0:01:46]}  d6 {[%clk 0:02:54]} 7. Nf3 {[%clk 0:01:47]}  Qe8 {[%clk 0:02:54]} 8. O-O {[%clk 0:01:46]}  c6 {[%clk 0:02:54]} 9. b3 {[%clk 0:01:45]}  e5 {[%clk 0:02:54]} 10. dxe5 {[%clk 0:01:45]}  dxe5 {[%clk 0:02:54]} 11. Ba3 {[%clk 0:01:44]}  Rf7 {[%clk 0:02:53]} 12. Ng5 {[%clk 0:01:44]}  Rd7 {[%clk 0:02:52]} 13. Rad1 {[%clk 0:01:43]}  h6 {[%clk 0:02:49]} 14. Nf3 {[%clk 0:01:43]}  e4 {[%clk 0:02:47]} 15. Nd4 {[%clk 0:01:36]}  Ng4 {[%clk 0:02:38]} 16. h3 {[%clk 0:01:26]}  Nxf2 {[%clk 0:02:34]} 17. Nxf5 {[%clk 0:01:13]}  Nxd1 {[%clk 0:02:05]} 18. Nxg7 {[%clk 0:01:12]}  Rxg7 {[%clk 0:02:03]} 19. Rxd1 {[%clk 0:01:11]}  e3 {[%clk 0:01:52]} 20. Ne4 {[%clk 0:01:09]}  Kh8 {[%clk 0:01:34]} 21. Bb2 {[%clk 0:01:08]}  Bf5 {[%clk 0:01:31]} 22. Qc3 {[%clk 0:01:08]}  Qe7 {[%clk 0:01:14]} 23. Rd8+ {[%clk 0:01:07]}  Kh7 {[%clk 0:01:14]} 24. Nf6+ {[%clk 0:01:07]} 1-0


[Site "https://www.chess.com"]

[Event "Titled Tuesday Blitz April 05 Late 2022"]
[White "Hamidi, Amir Mohammad"]
[Black "Shapiro, David"]
[WhiteFideId "12563285"]
[BlackFideId "24133523"]
[WhiteElo "2273"]
[BlackElo "2320"]
[Result "1-0"]
[Round "05"]
[TimeControl "180+1"]
[Date "2022.04.05"]
[WhiteClock "0:01:11"]
[BlackClock "0:00:06"]

1. d4 {[%clk 0:03:00]}  d5 {[%clk 0:02:58]} 2. c4 {[%clk 0:02:59]}  c6 {[%clk 0:02:58]} 3. Nc3 {[%clk 0:02:59]}  Nf6 {[%clk 0:02:59]} 4. Nf3 {[%clk 0:03:00]}  a6 {[%clk 0:02:58]} 5. a4 {[%clk 0:02:57]}  e6 {[%clk 0:02:49]} 6. Bg5 {[%clk 0:02:38]}  dxc4 {[%clk 0:02:37]} 7. e3 {[%clk 0:02:35]}  b5 {[%clk 0:02:34]} 8. axb5 {[%clk 0:02:34]}  cxb5 {[%clk 0:02:35]} 9. Nxb5 {[%clk 0:02:32]}  axb5 {[%clk 0:02:35]} 10. Rxa8 {[%clk 0:02:32]}  Bb4+ {[%clk 0:02:34]} 11. Nd2 {[%clk 0:02:26]}  Bb7 {[%clk 0:02:35]} 12. Ra1 {[%clk 0:02:23]}  Qd5 {[%clk 0:02:30]} 13. Bxf6 {[%clk 0:02:21]}  gxf6 {[%clk 0:02:31]} 14. Rg1 {[%clk 0:02:14]}  Rg8 {[%clk 0:02:28]} 15. g3 {[%clk 0:02:12]}  Qf5 {[%clk 0:02:17]} 16. Bg2 {[%clk 0:02:07]}  Bxg2 {[%clk 0:02:14]} 17. Rxg2 {[%clk 0:02:08]}  Qd3 {[%clk 0:02:11]} 18. Rc1 {[%clk 0:01:58]}  Nc6 {[%clk 0:01:46]} 19. Qc2 {[%clk 0:01:57]}  Qxc2 {[%clk 0:00:47]} 20. Rxc2 {[%clk 0:01:58]}  Na5 {[%clk 0:00:47]} 21. Ke2 {[%clk 0:01:57]}  Ke7 {[%clk 0:00:47]} 22. Rg1 {[%clk 0:01:55]}  Bxd2 {[%clk 0:00:42]} 23. Kxd2 {[%clk 0:01:56]}  Ra8 {[%clk 0:00:32]} 24. Kc3 {[%clk 0:01:54]}  Nc6 {[%clk 0:00:30]} 25. b3 {[%clk 0:01:49]}  Ra3 {[%clk 0:00:21]} 26. Rb1 {[%clk 0:01:48]}  Na5 {[%clk 0:00:17]} 27. Kb4 {[%clk 0:01:42]}  Rxb3+ {[%clk 0:00:14]} 28. Rxb3 {[%clk 0:01:42]}  cxb3 {[%clk 0:00:13]} 29. Re2 {[%clk 0:01:36]}  Nc4 {[%clk 0:00:12]} 30. Kxb3 {[%clk 0:01:36]}  Kd6 {[%clk 0:00:12]} 31. Kb4 {[%clk 0:01:36]}  Kc6 {[%clk 0:00:12]} 32. Ra2 {[%clk 0:01:31]}  f5 {[%clk 0:00:12]} 33. Ra7 {[%clk 0:01:29]}  Nd6 {[%clk 0:00:12]} 34. f3 {[%clk 0:01:28]}  Nc4 {[%clk 0:00:11]} 35. e4 {[%clk 0:01:26]}  fxe4 {[%clk 0:00:12]} 36. fxe4 {[%clk 0:01:26]}  Nd6 {[%clk 0:00:12]} 37. Ra6+ {[%clk 0:01:18]}  Kd7 {[%clk 0:00:12]} 38. e5 {[%clk 0:01:13]}  Nf5 {[%clk 0:00:13]} 39. Kc5 {[%clk 0:01:13]}  b4 {[%clk 0:00:06]} 40. Rb6 {[%clk 0:01:11]} 1-0


[Site "https://www.chess.com"]

[Event "Titled Tuesday Blitz April 05 Late 2022"]
[White "Harshavardhan G B"]
[Black "Martin Barcelo, Carles"]
[WhiteFideId "25059009"]
[BlackFideId "24561444"]
[WhiteElo "2609"]
[BlackElo "2474"]
[Result "1-0"]
[Round "05"]
[TimeControl "180+1"]
[Date "2022.04.06"]
[WhiteClock "0:00:45"]
[BlackClock "0:00:02"]

1. e4 {[%clk 0:03:00]}  c6 {[%clk 0:02:55]} 2. d4 {[%clk 0:02:58]}  d5 {[%clk 0:02:56]} 3. exd5 {[%clk 0:02:59]}  cxd5 {[%clk 0:02:57]} 4. c4 {[%clk 0:02:59]}  Nf6 {[%clk 0:02:57]} 5. Nc3 {[%clk 0:03:00]}  Nc6 {[%clk 0:02:54]} 6. Nf3 {[%clk 0:03:00]}  e6 {[%clk 0:02:52]} 7. Bg5 {[%clk 0:02:58]}  Be7 {[%clk 0:02:52]} 8. c5 {[%clk 0:02:57]}  Ne4 {[%clk 0:02:24]} 9. Bxe7 {[%clk 0:02:54]}  Qxe7 {[%clk 0:02:23]} 10. Bb5 {[%clk 0:02:55]}  Nxc3 {[%clk 0:02:22]} 11. bxc3 {[%clk 0:02:56]}  O-O {[%clk 0:02:20]} 12. Bxc6 {[%clk 0:02:54]}  bxc6 {[%clk 0:02:21]} 13. O-O {[%clk 0:02:54]}  Ba6 {[%clk 0:02:21]} 14. Re1 {[%clk 0:02:54]}  Qc7 {[%clk 0:02:14]} 15. Rb1 {[%clk 0:02:53]}  Bc4 {[%clk 0:02:12]} 16. Qa4 {[%clk 0:02:51]}  Bb5 {[%clk 0:02:12]} 17. Qb3 {[%clk 0:02:47]}  a5 {[%clk 0:02:11]} 18. a4 {[%clk 0:02:44]}  Bd3 {[%clk 0:02:10]} 19. Qb6 {[%clk 0:02:37]}  Rfc8 {[%clk 0:01:53]} 20. Qxc7 {[%clk 0:02:28]}  Rxc7 {[%clk 0:01:54]} 21. Rb6 {[%clk 0:02:28]}  Kf8 {[%clk 0:01:49]} 22. Ne5 {[%clk 0:02:26]}  Bc2 {[%clk 0:01:43]} 23. Ra1 {[%clk 0:02:21]}  Rac8 {[%clk 0:01:40]} 24. Ra2 {[%clk 0:02:20]}  Bf5 {[%clk 0:01:36]} 25. g4 {[%clk 0:02:17]}  Bg6 {[%clk 0:01:30]} 26. Rab2 {[%clk 0:02:12]}  Ke7 {[%clk 0:01:21]} 27. Ra6 {[%clk 0:02:10]}  f6 {[%clk 0:01:14]} 28. Nxg6+ {[%clk 0:02:10]}  hxg6 {[%clk 0:01:15]} 29. Rxa5 {[%clk 0:02:10]}  e5 {[%clk 0:01:16]} 30. Ra6 {[%clk 0:02:09]}  Ke6 {[%clk 0:01:14]} 31. f3 {[%clk 0:02:08]}  e4 {[%clk 0:01:14]} 32. Kf2 {[%clk 0:02:07]}  f5 {[%clk 0:01:14]} 33. a5 {[%clk 0:02:02]}  f4 {[%clk 0:01:12]} 34. Rab6 {[%clk 0:01:59]}  Ra7 {[%clk 0:01:02]} 35. a6 {[%clk 0:01:58]}  g5 {[%clk 0:00:37]} 36. h3 {[%clk 0:01:53]}  g6 {[%clk 0:00:31]} 37. fxe4 {[%clk 0:01:49]}  dxe4 {[%clk 0:00:32]} 38. c4 {[%clk 0:01:50]}  Rca8 {[%clk 0:00:29]} 39. Rxc6+ {[%clk 0:01:47]}  Kd7 {[%clk 0:00:29]} 40. Rbb6 {[%clk 0:01:47]}  e3+ {[%clk 0:00:28]} 41. Ke2 {[%clk 0:01:46]}  Re8 {[%clk 0:00:19]} 42. Rxg6 {[%clk 0:01:46]}  f3+ {[%clk 0:00:19]} 43. Kxf3 {[%clk 0:01:45]}  e2 {[%clk 0:00:19]} 44. Rb1 {[%clk 0:01:11]}  e1=Q {[%clk 0:00:19]} 45. Rxe1 {[%clk 0:01:11]}  Rxe1 {[%clk 0:00:20]} 46. d5 {[%clk 0:01:11]}  Re7 {[%clk 0:00:09]} 47. c6+ {[%clk 0:01:09]}  Kc8 {[%clk 0:00:09]} 48. d6 {[%clk 0:01:07]}  Rf7+ {[%clk 0:00:10]} 49. Ke4 {[%clk 0:01:06]}  Rf8 {[%clk 0:00:10]} 50. Kd5 {[%clk 0:01:01]}  Rxa6 {[%clk 0:00:10]} 51. Rxg5 {[%clk 0:00:58]}  Ra1 {[%clk 0:00:08]} 52. Rg7 {[%clk 0:00:57]}  Rd1+ {[%clk 0:00:08]} 53. Kc5 {[%clk 0:00:57]}  Re1 {[%clk 0:00:05]} 54. Ra7 {[%clk 0:00:54]}  Rb1 {[%clk 0:00:02]} 55. d7+ {[%clk 0:00:51]}  Kb8 {[%clk 0:00:01]} 56. d8=Q+ {[%clk 0:00:47]}  Rxd8 {[%clk 0:00:01]} 57. c7+ {[%clk 0:00:47]}  Kc8 {[%clk 0:00:02]} 58. cxd8=Q+ {[%clk 0:00:47]}  Kxd8 {[%clk 0:00:02]} 59. Rh7 {[%clk 0:00:46]}  Rg1 {[%clk 0:00:01]} 60. Kc6 {[%clk 0:00:46]}  Kc8 {[%clk 0:00:02]} 61. Rh8# {[%clk 0:00:45]} 1-0


[Site "https://www.chess.com"]

[Event "Titled Tuesday Blitz April 05 Late 2022"]
[White "Hoffmann, Asa"]
[Black "Baker, Chris W"]
[WhiteFideId "2001470"]
[BlackFideId "401676"]
[WhiteElo "2117"]
[BlackElo "2147"]
[Result "1-0"]
[Round "05"]
[TimeControl "180+1"]
[Date "2022.04.06"]
[WhiteClock "0:00:34"]
[BlackClock "0:00:13"]

1. d4 {[%clk 0:02:57]}  e6 {[%clk 0:02:58]} 2. e4 {[%clk 0:02:56]}  d5 {[%clk 0:02:57]} 3. e5 {[%clk 0:02:56]}  c5 {[%clk 0:02:56]} 4. Nf3 {[%clk 0:02:55]}  Bd7 {[%clk 0:02:56]} 5. Bd3 {[%clk 0:02:51]}  Qb6 {[%clk 0:02:55]} 6. O-O {[%clk 0:02:48]}  Bb5 {[%clk 0:02:53]} 7. Bxb5+ {[%clk 0:02:47]}  Qxb5 {[%clk 0:02:53]} 8. Nc3 {[%clk 0:02:47]}  Qd7 {[%clk 0:02:34]} 9. Be3 {[%clk 0:02:44]}  cxd4 {[%clk 0:02:27]} 10. Nxd4 {[%clk 0:02:43]}  Nc6 {[%clk 0:02:25]} 11. f4 {[%clk 0:02:43]}  a6 {[%clk 0:02:20]} 12. f5 {[%clk 0:02:40]}  Bc5 {[%clk 0:02:10]} 13. fxe6 {[%clk 0:02:32]}  fxe6 {[%clk 0:02:08]} 14. Qd2 {[%clk 0:02:19]}  Nge7 {[%clk 0:01:52]} 15. Nb3 {[%clk 0:02:11]}  Bxe3+ {[%clk 0:01:46]} 16. Qxe3 {[%clk 0:02:10]}  d4 {[%clk 0:01:46]} 17. Qg5 {[%clk 0:02:08]}  dxc3 {[%clk 0:01:44]} 18. Qxg7 {[%clk 0:02:07]}  O-O-O {[%clk 0:01:41]} 19. bxc3 {[%clk 0:02:05]}  Nd5 {[%clk 0:01:36]} 20. Qxd7+ {[%clk 0:01:58]}  Rxd7 {[%clk 0:01:36]} 21. Nc5 {[%clk 0:01:58]}  Re7 {[%clk 0:01:34]} 22. Rae1 {[%clk 0:01:53]}  Nxc3 {[%clk 0:01:27]} 23. Rf6 {[%clk 0:01:45]}  Rhe8 {[%clk 0:01:24]} 24. Rh6 {[%clk 0:01:43]}  Nxa2 {[%clk 0:01:17]} 25. Ne4 {[%clk 0:01:38]}  Kc7 {[%clk 0:01:13]} 26. Nd6 {[%clk 0:01:37]}  Rg8 {[%clk 0:01:10]} 27. c4 {[%clk 0:01:27]}  Nab4 {[%clk 0:01:07]} 28. c5 {[%clk 0:01:26]}  Nd3 {[%clk 0:01:06]} 29. Re3 {[%clk 0:01:14]}  Nxc5 {[%clk 0:01:00]} 30. Rc3 {[%clk 0:01:10]}  Nd7 {[%clk 0:00:59]} 31. Nc4 {[%clk 0:01:04]}  Rg6 {[%clk 0:00:53]} 32. Rh5 {[%clk 0:01:02]}  Rf7 {[%clk 0:00:44]} 33. g3 {[%clk 0:01:02]}  Rf5 {[%clk 0:00:43]} 34. Rxh7 {[%clk 0:01:01]}  Rg4 {[%clk 0:00:29]} 35. Ne3 {[%clk 0:00:57]}  Re4 {[%clk 0:00:24]} 36. Nxf5 {[%clk 0:00:56]}  exf5 {[%clk 0:00:24]} 37. Re7 {[%clk 0:00:45]}  Rxe5 {[%clk 0:00:23]} 38. Rxe5 {[%clk 0:00:44]}  Nxe5 {[%clk 0:00:23]} 39. h4 {[%clk 0:00:44]}  b5 {[%clk 0:00:22]} 40. h5 {[%clk 0:00:43]}  b4 {[%clk 0:00:22]} 41. Rc1 {[%clk 0:00:42]}  a5 {[%clk 0:00:21]} 42. h6 {[%clk 0:00:42]}  Ng6 {[%clk 0:00:21]} 43. h7 {[%clk 0:00:42]}  b3 {[%clk 0:00:20]} 44. Kf2 {[%clk 0:00:40]}  a4 {[%clk 0:00:20]} 45. Rb1 {[%clk 0:00:40]}  Nd4 {[%clk 0:00:19]} 46. Ke3 {[%clk 0:00:40]}  a3 {[%clk 0:00:19]} 47. Kxd4 {[%clk 0:00:36]}  a2 {[%clk 0:00:19]} 48. Rc1+ {[%clk 0:00:36]}  Kd6 {[%clk 0:00:18]} 49. Kc3 {[%clk 0:00:36]}  Ke5 {[%clk 0:00:13]} 50. Kxb3 {[%clk 0:00:36]}  Ke4 {[%clk 0:00:13]} 51. Kxa2 {[%clk 0:00:34]} 1-0


[Site "https://www.chess.com"]

[Event "Titled Tuesday Blitz April 05 Late 2022"]
[White "Holt, Conrad"]
[Black "Weetik, Vjacheslav"]
[WhiteFideId "2034387"]
[BlackFideId "4153472"]
[WhiteElo "2586"]
[BlackElo "2469"]
[Result "1-0"]
[Round "05"]
[TimeControl "180+1"]
[Date "2022.04.05"]
[WhiteClock "0:00:04"]
[BlackClock "0:00:03"]

1. d4 {[%clk 0:02:58]}  Nf6 {[%clk 0:02:59]} 2. c4 {[%clk 0:02:58]}  g6 {[%clk 0:02:59]} 3. Nc3 {[%clk 0:02:58]}  Bg7 {[%clk 0:03:00]} 4. e4 {[%clk 0:02:58]}  O-O {[%clk 0:03:00]} 5. Nf3 {[%clk 0:02:59]}  d6 {[%clk 0:03:00]} 6. h3 {[%clk 0:03:00]}  e5 {[%clk 0:02:58]} 7. d5 {[%clk 0:02:57]}  a5 {[%clk 0:02:54]} 8. Bg5 {[%clk 0:02:56]}  h6 {[%clk 0:02:54]} 9. Be3 {[%clk 0:02:55]}  Nh5 {[%clk 0:02:52]} 10. Qd2 {[%clk 0:02:54]}  Kh7 {[%clk 0:02:29]} 11. O-O-O {[%clk 0:02:54]}  Na6 {[%clk 0:02:28]} 12. Bd3 {[%clk 0:02:26]}  Nf4 {[%clk 0:02:13]} 13. Bxf4 {[%clk 0:02:20]}  exf4 {[%clk 0:02:13]} 14. Rde1 {[%clk 0:02:16]}  Nc5 {[%clk 0:02:08]} 15. Bc2 {[%clk 0:02:15]}  c6 {[%clk 0:01:57]} 16. e5 {[%clk 0:02:01]}  dxe5 {[%clk 0:01:47]} 17. Nxe5 {[%clk 0:02:00]}  a4 {[%clk 0:01:10]} 18. h4 {[%clk 0:01:48]}  h5 {[%clk 0:01:09]} 19. dxc6 {[%clk 0:01:40]}  Qxd2+ {[%clk 0:01:00]} 20. Kxd2 {[%clk 0:01:39]}  bxc6 {[%clk 0:01:01]} 21. Nxc6 {[%clk 0:01:36]}  Bb7 {[%clk 0:00:55]} 22. Ne5 {[%clk 0:01:36]}  a3 {[%clk 0:00:52]} 23. b4 {[%clk 0:01:32]}  Rad8+ {[%clk 0:00:34]} 24. Kc1 {[%clk 0:01:30]}  Ne6 {[%clk 0:00:29]} 25. Nb5 {[%clk 0:01:17]}  Bxg2 {[%clk 0:00:26]} 26. Rhg1 {[%clk 0:01:13]}  f3 {[%clk 0:00:27]} 27. Nxf7 {[%clk 0:00:58]}  Bb2+ {[%clk 0:00:18]} 28. Kb1 {[%clk 0:00:57]}  Rxf7 {[%clk 0:00:18]} 29. Rxe6 {[%clk 0:00:57]}  Rf6 {[%clk 0:00:16]} 30. Re7+ {[%clk 0:00:42]}  Kh6 {[%clk 0:00:11]} 31. c5 {[%clk 0:00:35]}  Rd2 {[%clk 0:00:11]} 32. Nd6 {[%clk 0:00:30]}  Rxf2 {[%clk 0:00:10]} 33. Ne4 {[%clk 0:00:26]}  Rxc2 {[%clk 0:00:09]} 34. Kxc2 {[%clk 0:00:13]}  f2 {[%clk 0:00:08]} 35. Rd1 {[%clk 0:00:05]}  Bxe4+ {[%clk 0:00:05]} 36. Rxe4 {[%clk 0:00:05]}  f1=Q {[%clk 0:00:06]} 37. Rxf1 {[%clk 0:00:04]}  Rxf1 {[%clk 0:00:07]} 38. Kb3 {[%clk 0:00:04]}  Rc1 {[%clk 0:00:05]} 39. Rc4 {[%clk 0:00:04]}  Rxc4 {[%clk 0:00:04]} 40. Kxc4 {[%clk 0:00:05]}  g5 {[%clk 0:00:04]} 41. Kd5 {[%clk 0:00:05]}  g4 {[%clk 0:00:04]} 42. c6 {[%clk 0:00:05]}  g3 {[%clk 0:00:04]} 43. c7 {[%clk 0:00:05]}  g2 {[%clk 0:00:05]} 44. c8=Q {[%clk 0:00:06]}  g1=Q {[%clk 0:00:06]} 45. Qe6+ {[%clk 0:00:05]}  Kg7 {[%clk 0:00:05]} 46. Qe7+ {[%clk 0:00:05]}  Kg6 {[%clk 0:00:05]} 47. Qe6+ {[%clk 0:00:05]}  Kg7 {[%clk 0:00:05]} 48. Qe7+ {[%clk 0:00:05]}  Kh6 {[%clk 0:00:04]} 49. Qf8+ {[%clk 0:00:04]}  Bg7 {[%clk 0:00:03]} 50. Qf4+ {[%clk 0:00:04]}  Kh7 {[%clk 0:00:02]} 51. b5 {[%clk 0:00:05]}  Qg6 {[%clk 0:00:03]} 52. Kc5 {[%clk 0:00:04]}  Qf6 {[%clk 0:00:02]} 53. Qe4+ {[%clk 0:00:04]}  Kg8 {[%clk 0:00:02]} 54. b6 {[%clk 0:00:05]}  Bf8+ {[%clk 0:00:03]} 55. Kb5 {[%clk 0:00:05]}  Qf7 {[%clk 0:00:03]} 56. Qg2+ {[%clk 0:00:04]}  Kh7 {[%clk 0:00:03]} 57. b7 {[%clk 0:00:05]}  Qf5+ {[%clk 0:00:02]} 58. Ka6 {[%clk 0:00:04]}  Qe6+ {[%clk 0:00:02]} 59. Kb5 {[%clk 0:00:04]}  Bd6 {[%clk 0:00:03]} 60. Qc2+ {[%clk 0:00:04]}  Kg7 {[%clk 0:00:03]} 61. Qc8 {[%clk 0:00:04]}  Qe5+ {[%clk 0:00:03]} 62. Kc6 {[%clk 0:00:04]}  Kf6 {[%clk 0:00:04]} 63. Qd8+ {[%clk 0:00:04]}  Be7 {[%clk 0:00:03]} 64. Qd2 {[%clk 0:00:04]}  Qc7+ {[%clk 0:00:03]} 65. Kxc7 {[%clk 0:00:04]} 1-0


[Site "https://www.chess.com"]